[Event "RUS-ch Women Rapid 2019"]
[Site "Sochi"]
[Date "2019.10.15"]
[Round "1.10"]
[White "Danilova, Rada"]
[Black "Vasilevich, Tatjana"]
[Result "1/2-1/2"]
[ECO "E15"]
[WhiteElo "1843"]
[BlackElo "2265"]
[Annotator "NA"]
[PlyCount "121"]
[EventDate "2019.10.15"]
[EventType "swiss"]
[EventCountry "RUS"]
[SourceTitle "playchess.com"]
[Source "ChessBase"]
[SourceQuality "1"]
[TimeControl "900+10"]

1. d4 {[%emt 0:00:00]} Nf6 {[%emt 0:00:00]} 2. c4 {[%emt 0:00:00]} e6 {[%emt 0:00:00]} 3. Nf3 {[%emt 0:00:00]} b6 {[%emt 0:00:00]} 4. g3 {[%emt 0:00:00]} Ba6 {[%emt 0:00:20]} 5. b3 {[%emt 0:00:05]} Bb4+ {[%emt 0:01:44]} 6. Bd2 {[%emt 0:00:03]} Be7 {[%emt 0:00:02]} 7. Nc3 {[%emt 0:00:04]} Bb7 {[%emt 0:00:29]} 8. Bg2 {[%emt 0:00:02]} O-O {[%emt 0:02:19]} 9. O-O {[%emt 0:00:13]} Ne4 {[%emt 0:00:34]} 10. d5 {[%emt 0:00:43]} exd5 {[%emt 0:02:48]} 11. cxd5 {[%emt 0:00:02]} Nxd2 {[%emt 0:00:41]} 12. Qxd2 {[%emt 0:00:24]} d6 {[%emt 0:00:05]} 13. Rac1 {[%emt 0:00:17]} a6 {[%emt 0:00:25]} 14. e4 {[%emt 0:00:24]} Nd7 {[%emt 0:00:05]} 15. Qc2 {[%emt 0:00:54]} Re8 {[%emt 0:00:54]} 16. Rfe1 {[%emt 0:00:02]} Bf6 {[%emt 0:00:28]} 17. b4 {[%emt 0:00:55]} Re7 {[%emt 0:00:31]} 18. Ne2 {[%emt 0:00:18]} Nf8 {[%emt 0:01:22]} 19. Nfd4 {[%emt 0:00:16]} g6 {[%emt 0:00:15]} 20. a4 {[%emt 0:00:40]} Qe8 {[%emt 0:00:58]} 21. Red1 {[%emt 0:00:25]} h5 {[%emt 0:00:52]} 22. h4 {[%emt 0:00:15]} Nh7 {[%emt 0:00:09]} 23. Nf4 {[%emt 0:00:44]} Bg7 {[%emt 0:00:36]} 24. Nc6 {[%emt 0:00:09]} Bxc6 {[%emt 0:00:14]} 25. Qxc6 {[%emt 0:00:38]} Qd8 {[%emt 0:01:34]} 26. Qc2 {[%emt 0:00:46]} a5 {[%emt 0:00:24]} 27. b5 {[%emt 0:00:06]} Bh6 {[%emt 0:00:24]} 28. Qd3 {[%emt 0:00:39]} Nf6 {[%emt 0:00:26]} 29. Rc2 {[%emt 0:00:31]} Nd7 {[%emt 0:00:12]} 30. Qb3 {[%emt 0:00:45]} Nc5 {[%emt 0:00:13]} 31. Qc4 {[%emt 0:00:13]} Bxf4 {[%emt 0:00:13]} 32. gxf4 {[%emt 0:00:01]} Re8 {[%emt 0:00:11]} 33. Rc3 {[%emt 0:01:52]} Qxh4 {[%emt 0:00:04]} 34. e5 {[%emt 0:00:05]} dxe5 {[%emt 0:00:39]} 35. d6 {[%emt 0:00:24]} cxd6 {[%emt 0:00:04]} 36. Rxd6 {[%emt 0:00:15]} exf4 {[%emt 0:00:07]} 37. Rxg6+ {[%emt 0:00:03]} Kf8 {[%emt 0:00:05]} 38. Rh3 {[%emt 0:01:11]} Re1+ {[%emt 0:00:18]} 39. Kh2 {[%emt 0:00:01]} Qxf2 {[%emt 0:00:12]} 40. Rf3 {[%emt 0:00:49]} Qh4+ {[%emt 0:00:09]} 41. Rh3 {[%emt 0:00:01]} Qf2 {[%emt 0:00:01]} 42. Rf3 {[%emt 0:00:01]} Qh4+ {[%emt 0:00:00]} 43. Rh3 {[%emt 0:00:01]} Qe7 {[%emt 0:00:32]} 44. Rxb6 {[%emt 0:00:52]} Rd8 {[%emt 0:00:18]} 45. Rh6 {[%emt 0:00:02]} Rd2 {[%emt 0:00:11]} 46. Qxf4 {[%emt 0:01:06]} Rxg2+ {[%emt 0:00:12]} 47. Kxg2 {[%emt 0:00:02]} Re2+ {[%emt 0:00:13]} 48. Kf1 {[%emt 0:00:04]} Re1+ {[%emt 0:00:03]} 49. Kg2 {[%emt 0:00:01]} Re2+ {[%emt 0:00:09]} 50. Kf1 {[%emt 0:00:02]} Re1+ {[%emt 0:00:05]} 51. Kg2 {[%emt 0:00:01]} Re2+ {[%emt 0:00:22]} 52. Kf1 {[%emt 0:00:01]} Re1+ {[%emt 0:00:05]} 53. Kg2 {[%emt 0:00:00]} Re2+ {[%emt 0:00:13]} 54. Kf1 {[%emt 0:00:01]} Re1+ {[%emt 0:00:09]} 55. Kg2 {[%emt 0:00:01]} Re2+ {[%emt 0:00:08]} 56. Kf1 {[%emt 0:00:01]} Re1+ {[%emt 0:00:13]} 57. Kg2 {[%emt 0:00:01]} Re2+ 58. Kf1 {[%emt 0:00:00]} Re1+ {[%emt 0:00:01]} 59. Kg2 {[%emt 0:00:02]} Re2+ {[%emt 0:00:01]} 60. Kf1 {[%emt 0:00:00]} Re1+ {[%emt 0:00:16]} 61. Kg2 {[%emt 0:00:00]} 1/2-1/2

[Event "RUS-ch Women Rapid 2019"]
[Site "Sochi"]
[Date "2019.10.15"]
[Round "1.11"]
[White "Gritsayeva, Oksana"]
[Black "Pavlova, Natalia"]
[Result "1-0"]
[ECO "A28"]
[WhiteElo "2260"]
[BlackElo "1840"]
[Annotator "NA"]
[PlyCount "37"]
[EventDate "2019.10.15"]
[EventType "swiss"]
[EventCountry "RUS"]
[SourceTitle "playchess.com"]
[Source "ChessBase"]
[SourceQuality "1"]
[TimeControl "900+10"]

1. c4 {[%emt 0:00:00]} e5 {[%emt 0:00:00]} 2. Nc3 {[%emt 0:00:00]} Nf6 {[%emt 0:00:00]} 3. Nf3 {[%emt 0:00:00]} Nc6 {[%emt 0:00:00]} 4. e4 {[%emt 0:00:01]} Bc5 {[%emt 0:00:49]} 5. Nxe5 {[%emt 0:00:11]} Bxf2+ {[%emt 0:02:18]} 6. Kxf2 {[%emt 0:00:04]} Nxe5 {[%emt 0:00:01]} 7. d4 {[%emt 0:00:10]} Neg4+ {[%emt 0:00:02]} 8. Kg1 {[%emt 0:00:35]} h5 {[%emt 0:02:04]} 9. h3 {[%emt 0:01:07]} Nh6 {[%emt 0:01:10]} 10. e5 {[%emt 0:00:51]} Nfg8 {[%emt 0:00:36]} 11. Qxh5 {[%emt 0:01:29]} g6 {[%emt 0:00:02]} 12. Qf3 {[%emt 0:02:39]} Nf5 {[%emt 0:00:46]} 13. Qf2 {[%emt 0:00:19]} d6 {[%emt 0:01:01]} 14. exd6 {[%emt 0:01:00]} cxd6 {[%emt 0:02:10]} 15. Bf4 {[%emt 0:00:59]} g5 {[%emt 0:01:37]} 16. Bh2 {[%emt 0:00:47]} f6 {[%emt 0:00:17]} 17. Bd3 {[%emt 0:01:11]} Nge7 {[%emt 0:00:08]} 18. g4 {[%emt 0:00:43]} Rxh3 {[%emt 0:00:08]} 19. Bxf5 {[%emt 0:00:32]} 1-0

[Event "RUS-ch Women Rapid 2019"]
[Site "Sochi"]
[Date "2019.10.15"]
[Round "1.12"]
[White "Sakorenko, Adriana"]
[Black "Karavaeva, Olga"]
[Result "0-1"]
[ECO "A06"]
[WhiteElo "1825"]
[BlackElo "2260"]
[Annotator "NA"]
[PlyCount "50"]
[EventDate "2019.10.15"]
[EventType "swiss"]
[EventCountry "RUS"]
[SourceTitle "playchess.com"]
[Source "ChessBase"]
[SourceQuality "1"]
[TimeControl "900+10"]

1. Nf3 d5 2. g3 c6 3. Bg2 Nf6 4. O-O e6 5. d3 Nbd7 6. Nbd2 Bd6 7. e4 O-O 8. Re1 Qc7 9. c3 b6 10. Qc2 Bb7 11. d4 dxe4 12. Nxe4 Nxe4 13. Qxe4 c5 14. Qe2 h6 15. Be3 Rad8 16. Rad1 Rfe8 17. Rd2 Nf6 18. dxc5 Bxc5 19. Bxc5 Qxc5 20. Ne5 Bxg2 21. Kxg2 Rd5 22. Rxd5 Qxd5+ 23. Qf3 Qxa2 24. Rd1 Qxb2 25. Rd7 Qb5 0-1

[Event "RUS-ch Women Rapid 2019"]
[Site "Sochi"]
[Date "2019.10.15"]
[Round "2.1"]
[White "Borisova, Ekaterina"]
[Black "Pogonina, Natalija"]
[Result "1/2-1/2"]
[ECO "D02"]
[WhiteElo "2347"]
[BlackElo "2501"]
[Annotator "ChessBase"]
[PlyCount "81"]
[EventDate "2019.10.15"]
[EventType "swiss"]
[EventCountry "RUS"]
[SourceTitle "playchess.com"]
[Source "ChessBase"]
[SourceQuality "1"]
[TimeControl "900+10"]

1. d4 {[%emt 0:00:00]} d5 {[%emt 0:00:00]} 2. Nf3 {[%emt 0:00:00]} Nf6 {[%emt 0:00:00]} 3. c4 {[%emt 0:00:00]} e6 {[%emt 0:00:00]} 4. g3 {[%emt 0:00:00]} Bb4+ {[%emt 0:00:08]} 5. Bd2 {[%emt 0:00:04]} Be7 {[%emt 0:00:02]} 6. Bg2 {[%emt 0:00:01]} O-O {[%emt 0:00:03]} 7. O-O {[%emt 0:00:02]} Nbd7 {[%emt 0:00:05]} 8. Qc2 {[%emt 0:00:02]} c6 {[%emt 0:00:03]} 9. Bf4 {[%emt 0:00:02]} b6 {[%emt 0:00:03]} 10. Rd1 {[%emt 0:00:01]} Ba6 {[%emt 0:00:04]} 11. Ne5 {[%emt 0:00:30]} Rc8 {[%emt 0:00:02]} 12. Nc3 {[%emt 0:00:23]} Nh5 {[%emt 0:02:42]} 13. cxd5 {[%emt 0:00:37]} cxd5 {[%emt 0:00:25]} 14. Qa4 {[%emt 0:00:22]} Nxf4 {[%emt 0:01:03]} 15. gxf4 {[%emt 0:04:05]} Nb8 {[%emt 0:00:15]} 16. Rac1 {[%emt 0:00:38]} Bd6 {[%emt 0:01:20]} 17. e3 {[%emt 0:00:39]} Qe7 {[%emt 0:00:09]} 18. Nb5 {[%emt 0:01:42]} Bxb5 {[%emt 0:03:08]} 19. Qxb5 {[%emt 0:00:03]} Qb7 {[%emt 0:00:05]} 20. a3 {[%emt 0:02:23]} a6 {[%emt 0:00:04]} 21. Qd3 {[%emt 0:00:06]} b5 {[%emt 0:00:09]} 22. b4 {[%emt 0:00:29]} Nd7 {[%emt 0:00:35]} 23. Bh3 {[%emt 0:01:22]} f5 {[%emt 0:00:39]} 24. Qb3 {[%emt 0:01:05]} Rxc1 {[%emt 0:04:28]} 25. Rxc1 {[%emt 0:00:01]} Bxe5 {[%emt 0:00:48]} 26. fxe5 {[%emt 0:01:13]} Rc8 {[%emt 0:00:12]} 27. Rxc8+ {[%emt 0:02:01]} Qxc8 {[%emt 0:00:02]} 28. Bxf5 {[%emt 0:00:02]} exf5 {[%emt 0:00:07]} 29. Qxd5+ {[%emt 0:00:01]} Kh8 {[%emt 0:00:59]} 30. Qe6 {[%emt 0:00:01]} Qd8 {[%emt 0:01:34]} 31. d5 {[%emt 0:00:17]} h6 {[%emt 0:00:27]} 32. d6 {[%emt 0:00:25]} Qg5+ {[%emt 0:00:08]} 33. Kf1 {[%emt 0:00:09]} Qg4 {[%emt 0:00:13]} 34. Qd5 {[%emt 0:01:30]} f4 {[%emt 0:00:25]} 35. Qa8+ {[%emt 0:00:12]} Kh7 {[%emt 0:00:01]} 36. Qe4+ {[%emt 0:00:03]} Kh8 {[%emt 0:00:02]} 37. exf4 {[%emt 0:00:14]} Qd1+ {[%emt 0:00:02]} 38. Kg2 {[%emt 0:00:07]} Qg4+ {[%emt 0:00:02]} 39. Kf1 {[%emt 0:00:14]} Qd1+ {[%emt 0:00:01]} 40. Kg2 {[%emt 0:00:10]} Qg4+ {[%emt 0:00:02]} 41. Kf1 {[%emt 0:00:01]} 1/2-1/2

[Event "RUS-ch Women Rapid 2019"]
[Site "Sochi"]
[Date "2019.10.15"]
[Round "2.2"]
[White "Bodnaruk, Anastasia"]
[Black "Afonasieva, Anna"]
[Result "0-1"]
[ECO "B12"]
[WhiteElo "2449"]
[BlackElo "2312"]
[Annotator "NA"]
[PlyCount "116"]
[EventDate "2019.10.15"]
[EventType "swiss"]
[EventCountry "RUS"]
[SourceTitle "playchess.com"]
[Source "ChessBase"]
[SourceQuality "1"]
[TimeControl "900+10"]

1. e4 {[%emt 0:00:00]} c6 {[%emt 0:00:00]} 2. d4 {[%emt 0:00:00]} d5 {[%emt 0:00:00]} 3. e5 {[%emt 0:00:00]} c5 {[%emt 0:00:00]} 4. c3 {[%emt 0:00:00]} Nc6 {[%emt 0:00:00]} 5. Be2 {[%emt 0:00:00]} cxd4 {[%emt 0:00:08]} 6. cxd4 {[%emt 0:00:00]} Bf5 {[%emt 0:00:08]} 7. Nf3 {[%emt 0:01:19]} e6 {[%emt 0:00:02]} 8. O-O {[%emt 0:00:11]} Bb4 {[%emt 0:00:15]} 9. a3 {[%emt 0:00:55]} Ba5 {[%emt 0:00:03]} 10. b4 {[%emt 0:00:02]} Bb6 {[%emt 0:00:02]} 11. Nc3 {[%emt 0:00:43]} Nge7 {[%emt 0:00:25]} 12. Na4 {[%emt 0:00:07]} O-O {[%emt 0:00:28]} 13. Bb2 {[%emt 0:00:14]} Bg4 {[%emt 0:00:55]} 14. Rc1 {[%emt 0:00:09]} Ng6 {[%emt 0:00:45]} 15. Qd2 {[%emt 0:03:49]} f6 {[%emt 0:01:20]} 16. Nxb6 {[%emt 0:01:07]} axb6 {[%emt 0:00:26]} 17. Rfe1 {[%emt 0:05:57]} fxe5 {[%emt 0:01:36]} 18. Nxe5 {[%emt 0:00:12]} Ncxe5 {[%emt 0:00:46]} 19. dxe5 {[%emt 0:00:01]} Bxe2 {[%emt 0:00:15]} 20. Qxe2 {[%emt 0:00:11]} Nf4 {[%emt 0:00:05]} 21. Qf3 {[%emt 0:00:57]} Rf5 {[%emt 0:00:16]} 22. Kh1 {[%emt 0:00:49]} Qh4 {[%emt 0:01:54]} 23. Qe3 {[%emt 0:00:22]} Rh5 {[%emt 0:01:01]} 24. h3 {[%emt 0:00:19]} Qg4 {[%emt 0:00:37]} 25. Qg3 {[%emt 0:00:12]} Qxg3 {[%emt 0:00:14]} 26. fxg3 {[%emt 0:00:00]} Nd3 {[%emt 0:00:02]} 27. g4 {[%emt 0:00:11]} Rg5 {[%emt 0:01:19]} 28. Re2 {[%emt 0:01:19]} Nxc1 {[%emt 0:00:04]} 29. Bxc1 {[%emt 0:00:01]} Rg6 {[%emt 0:00:01]} 30. Rc2 {[%emt 0:00:37]} d4 {[%emt 0:00:20]} 31. Kg1 {[%emt 0:00:13]} h5 {[%emt 0:00:48]} 32. g5 {[%emt 0:00:01]} d3 {[%emt 0:00:01]} 33. Rc7 {[%emt 0:00:14]} Rd8 {[%emt 0:00:02]} 34. Bd2 {[%emt 0:00:01]} Rd5 {[%emt 0:00:14]} 35. Kf2 {[%emt 0:00:24]} Rxe5 {[%emt 0:00:02]} 36. Be3 {[%emt 0:00:02]} Rd5 {[%emt 0:00:12]} 37. Ke1 {[%emt 0:00:14]} e5 {[%emt 0:00:03]} 38. Rxb7 Rc6 {[%emt 0:00:09]} 39. a4 {[%emt 0:00:22]} Rc2 {[%emt 0:00:38]} 40. Bd2 {[%emt 0:00:01]} Rd6 {[%emt 0:00:20]} 41. Re7 {[%emt 0:00:13]} Ra2 {[%emt 0:00:23]} 42. a5 {[%emt 0:00:18]} bxa5 {[%emt 0:00:10]} 43. bxa5 {[%emt 0:00:00]} Kf8 {[%emt 0:00:38]} 44. Rxe5 {[%emt 0:00:05]} Kf7 {[%emt 0:00:01]} 45. Rf5+ {[%emt 0:00:19]} Ke8 {[%emt 0:00:14]} 46. Re5+ {[%emt 0:00:15]} Kd7 {[%emt 0:00:01]} 47. h4 {[%emt 0:00:13]} Re6 {[%emt 0:00:07]} 48. Rxe6 {[%emt 0:00:06]} Kxe6 {[%emt 0:00:01]} 49. g3 {[%emt 0:00:12]} g6 {[%emt 0:00:06]} 50. Bc3 {[%emt 0:00:09]} Kd5 {[%emt 0:00:08]} 51. Bd2 {[%emt 0:00:12]} Kd4 {[%emt 0:00:15]} 52. g4 {[%emt 0:00:08]} hxg4 {[%emt 0:00:15]} 53. h5 {[%emt 0:00:01]} gxh5 {[%emt 0:00:39]} 54. g6 {[%emt 0:00:00]} g3 {[%emt 0:00:14]} 55. Kf1 {[%emt 0:00:31]} g2+ {[%emt 0:00:08]} 56. Kg1 {[%emt 0:00:07]} Ke4 {[%emt 0:00:40]} 57. g7 {[%emt 0:00:09]} Kf3 {[%emt 0:00:01]} 58. Kh2 {[%emt 0:00:26]} Ra1 {[%emt 0:00:10]} 0-1

[Event "RUS-ch Women Rapid 2019"]
[Site "Sochi"]
[Date "2019.10.15"]
[Round "2.3"]
[White "Utiatskaja, Irina"]
[Black "Voit, Daria"]
[Result "0-1"]
[ECO "B75"]
[WhiteElo "2172"]
[BlackElo "2361"]
[Annotator "NA"]
[PlyCount "62"]
[EventDate "2019.10.15"]
[EventType "swiss"]
[EventCountry "RUS"]
[SourceTitle "playchess.com"]
[Source "ChessBase"]
[SourceQuality "1"]
[TimeControl "900+10"]

1. e4 c5 2. Nf3 d6 3. d4 cxd4 4. Nxd4 Nf6 5. Nc3 g6 6. Be3 Bg7 7. f3 Nc6 8. Qd2 O-O 9. g4 Be6 10. Nxe6 fxe6 11. O-O-O Ne5 12. Be2 Qc8 13. Rhe1 Nc4 14. Bxc4 Qxc4 15. Bd4 Nd7 16. Bxg7 Kxg7 17. f4 b5 18. b3 Qb4 19. Qe3 Rac8 20. Ne2 Qa3+ 21. Kb1 Rxc2 22. Kxc2 Qxa2+ 23. Kc1 Rc8+ 24. Nc3 Qxb3 25. Rd3 Nc5 26. Red1 Nxd3+ 27. Rxd3 b4 28. Qxa7 Rxc3+ 29. Rxc3 Qxc3+ 30. Kb1 Kf7 31. Qb7 b3 0-1

[Event "RUS-ch Women Rapid 2019"]
[Site "Sochi"]
[Date "2019.10.15"]
[Round "2.4"]
[White "Ambartsumova, Karina"]
[Black "Styazhkina, Anna"]
[Result "1-0"]
[ECO "A28"]
[WhiteElo "2336"]
[BlackElo "2280"]
[Annotator "NA"]
[PlyCount "51"]
[EventDate "2019.10.15"]
[EventType "swiss"]
[EventCountry "RUS"]
[SourceTitle "playchess.com"]
[Source "ChessBase"]
[SourceQuality "1"]
[TimeControl "900+10"]

1. c4 {[%emt 0:00:13]} e5 {[%emt 0:00:00]} 2. Nc3 {[%emt 0:00:42]} Nf6 {[%emt 0:00:05]} 3. Nf3 {[%emt 0:00:23]} Nc6 {[%emt 0:00:15]} 4. a3 {[%emt 0:00:10]} d5 {[%emt 0:00:52]} 5. cxd5 {[%emt 0:00:04]} Nxd5 {[%emt 0:00:02]} 6. Qc2 {[%emt 0:00:16]} Be7 {[%emt 0:01:04]} 7. e4 {[%emt 0:01:31]} Nf4 {[%emt 0:01:03]} 8. d4 {[%emt 0:00:59]} Ng6 {[%emt 0:05:10]} 9. d5 {[%emt 0:03:31]} Nb8 {[%emt 0:00:28]} 10. Bd3 {[%emt 0:00:50]} O-O {[%emt 0:00:05]} 11. O-O {[%emt 0:00:09]} a5 {[%emt 0:01:12]} 12. Rd1 {[%emt 0:00:25]} Na6 {[%emt 0:01:18]} 13. Be3 {[%emt 0:00:26]} Nc5 {[%emt 0:01:25]} 14. Be2 {[%emt 0:00:31]} f5 {[%emt 0:00:20]} 15. d6 {[%emt 0:00:31]} cxd6 {[%emt 0:01:55]} 16. Bxc5 {[%emt 0:00:02]} Qc7 {[%emt 0:00:03]} 17. Qb3+ {[%emt 0:00:30]} Kh8 {[%emt 0:00:06]} 18. Bxd6 {[%emt 0:01:15]} Bxd6 {[%emt 0:00:03]} 19. Nb5 {[%emt 0:00:01]} Qe7 {[%emt 0:00:29]} 20. Nxd6 {[%emt 0:00:25]} fxe4 {[%emt 0:00:17]} 21. Nxe4 {[%emt 0:00:38]} Nf4 {[%emt 0:00:05]} 22. Re1 {[%emt 0:01:46]} Bg4 {[%emt 0:00:15]} 23. Rad1 {[%emt 0:01:12]} Ra6 {[%emt 0:00:39]} 24. Bxa6 {[%emt 0:01:18]} bxa6 {[%emt 0:00:26]} 25. Re3 {[%emt 0:00:41]} Ne6 {[%emt 0:00:30]} 26. Rde1 {[%emt 0:00:15]} 1-0

[Event "RUS-ch Women Rapid 2019"]
[Site "Sochi"]
[Date "2019.10.15"]
[Round "2.5"]
[White "Markelova, Lubov"]
[Black "Guseva, Marina"]
[Result "1-0"]
[ECO "A05"]
[WhiteElo "2198"]
[BlackElo "2335"]
[Annotator "NA"]
[PlyCount "71"]
[EventDate "2019.10.15"]
[EventType "swiss"]
[EventCountry "RUS"]
[SourceTitle "playchess.com"]
[Source "ChessBase"]
[SourceQuality "1"]
[TimeControl "900+10"]

1. Nf3 Nf6 2. c4 e6 3. e3 d5 4. d4 c5 5. cxd5 exd5 6. Bb5+ Nc6 7. Nc3 a6 8. Bxc6+ bxc6 9. O-O Bd6 10. dxc5 Bxc5 11. b3 O-O 12. Bb2 Bg4 13. Rc1 Bd6 14. Ne2 Rc8 15. Qd3 Ne4 16. Ng3 Re8 17. Rfd1 a5 18. Qd4 f6 19. Qd3 Qd7 20. Qe2 Ng5 21. Rd4 h5 22. h4 Ne4 23. Nxe4 dxe4 24. Qd2 exf3 25. Rxd6 Qf5 26. Qd4 fxg2 27. Rc5 Qf3 28. Rg5 Re7 29. Rd8+ Rxd8 30. Qxd8+ Kh7 31. Qxe7 Qd1+ 32. Kxg2 Qf3+ 33. Kg1 Qd1+ 34. Kg2 Qf3+ 35. Kg1 Qd1+ 36. Kh2 1-0

[Event "RUS-ch Women Rapid 2019"]
[Site "Sochi"]
[Date "2019.10.15"]
[Round "2.6"]
[White "Maltsevskaya, Aleksandra"]
[Black "Samigullina, Diana"]
[Result "0-1"]
[ECO "B32"]
[WhiteElo "2304"]
[BlackElo "2161"]
[Annotator "NA"]
[PlyCount "90"]
[EventDate "2019.10.15"]
[EventType "swiss"]
[EventCountry "RUS"]
[SourceTitle "playchess.com"]
[Source "ChessBase"]
[SourceQuality "1"]
[TimeControl "900+10"]

1. e4 {[%emt 0:00:00]} c5 {[%emt 0:00:00]} 2. Nf3 {[%emt 0:00:00]} Nc6 {[%emt 0:00:00]} 3. d4 {[%emt 0:00:00]} cxd4 {[%emt 0:00:00]} 4. Nxd4 {[%emt 0:00:02]} e5 {[%emt 0:00:00]} 5. Nb5 {[%emt 0:00:04]} d6 {[%emt 0:00:00]} 6. N1c3 {[%emt 0:00:03]} a6 {[%emt 0:00:00]} 7. Na3 {[%emt 0:00:02]} b5 {[%emt 0:00:00]} 8. Nd5 {[%emt 0:00:02]} Nf6 {[%emt 0:00:00]} 9. Bg5 {[%emt 0:00:06]} Be7 {[%emt 0:00:01]} 10. Bxf6 {[%emt 0:00:02]} Bxf6 {[%emt 0:00:01]} 11. c3 {[%emt 0:00:31]} Bg5 {[%emt 0:00:13]} 12. Nc2 {[%emt 0:00:02]} O-O {[%emt 0:00:02]} 13. a4 {[%emt 0:00:02]} bxa4 {[%emt 0:00:08]} 14. Rxa4 {[%emt 0:00:02]} a5 {[%emt 0:00:05]} 15. Bc4 {[%emt 0:00:46]} Rb8 {[%emt 0:00:02]} 16. b3 {[%emt 0:00:02]} Kh8 {[%emt 0:00:52]} 17. O-O {[%emt 0:00:05]} f5 {[%emt 0:01:15]} 18. exf5 {[%emt 0:03:11]} Bxf5 {[%emt 0:00:26]} 19. Nce3 {[%emt 0:00:21]} Bg6 {[%emt 0:02:26]} 20. Qg4 {[%emt 0:02:55]} e4 {[%emt 0:01:13]} 21. Qd1 {[%emt 0:00:26]} Ne5 {[%emt 0:01:13]} 22. Be2 {[%emt 0:00:02]} Bh6 {[%emt 0:02:43]} 23. Ng4 {[%emt 0:01:40]} Nxg4 {[%emt 0:01:30]} 24. Bxg4 {[%emt 0:00:03]} Rb5 {[%emt 0:02:22]} 25. Rd4 {[%emt 0:03:36]} Qb8 {[%emt 0:01:14]} 26. Ne7 {[%emt 0:04:10]} Bf7 {[%emt 0:00:54]} 27. c4 {[%emt 0:00:26]} Rxb3 {[%emt 0:01:53]} 28. Nc6 {[%emt 0:00:03]} Qb6 {[%emt 0:00:10]} 29. Rxd6 {[%emt 0:00:02]} Rd3 {[%emt 0:00:11]} 30. Rxd3 {[%emt 0:00:17]} exd3 {[%emt 0:00:01]} 31. Ne5 {[%emt 0:00:04]} Qd4 {[%emt 0:00:42]} 32. Re1 {[%emt 0:01:01]} Bxc4 {[%emt 0:00:07]} 33. Nxc4 {[%emt 0:00:06]} Qxc4 {[%emt 0:00:07]} 34. Be6 {[%emt 0:00:12]} Qd4 {[%emt 0:00:05]} 35. Kh1 {[%emt 0:00:07]} Qxf2 {[%emt 0:00:16]} 36. Bc4 {[%emt 0:00:09]} d2 {[%emt 0:00:19]} 37. Rf1 {[%emt 0:00:01]} Qc5 {[%emt 0:00:01]} 38. h3 {[%emt 0:00:12]} g6 {[%emt 0:00:26]} 39. Rxf8+ {[%emt 0:00:13]} Qxf8 {[%emt 0:00:06]} 40. Qa1+ {[%emt 0:00:08]} Bg7 {[%emt 0:00:02]} 41. Qd1 {[%emt 0:00:04]} Qf2 {[%emt 0:00:02]} 42. Be2 {[%emt 0:00:21]} Qe1+ {[%emt 0:00:04]} 43. Kh2 {[%emt 0:00:01]} Be5+ {[%emt 0:00:01]} 44. g3 {[%emt 0:00:01]} Bxg3+ {[%emt 0:00:07]} 45. Kg2 {[%emt 0:00:02]} Qf2+ {[%emt 0:00:01]} 0-1

[Event "RUS-ch Women Rapid 2019"]
[Site "Sochi"]
[Date "2019.10.15"]
[Round "2.7"]
[White "Goltseva, Ekaterina"]
[Black "Charochkina, Daria"]
[Result "1-0"]
[ECO "A41"]
[WhiteElo "2317"]
[BlackElo "2289"]
[Annotator "NA"]
[PlyCount "77"]
[EventDate "2019.10.15"]
[EventType "swiss"]
[EventCountry "RUS"]
[SourceTitle "playchess.com"]
[Source "ChessBase"]
[SourceQuality "1"]
[TimeControl "900+10"]

1. d4 {[%emt 0:00:00]} d6 {[%emt 0:00:00]} 2. c4 {[%emt 0:00:18]} e5 {[%emt 0:00:00]} 3. Nc3 {[%emt 0:00:01]} exd4 {[%emt 0:00:07]} 4. Qxd4 {[%emt 0:00:02]} Nc6 {[%emt 0:00:03]} 5. Qd2 {[%emt 0:00:01]} Be6 {[%emt 0:02:28]} 6. b3 {[%emt 0:00:10]} Nf6 {[%emt 0:00:30]} 7. Bb2 {[%emt 0:02:43]} d5 {[%emt 0:01:14]} 8. cxd5 {[%emt 0:02:02]} Nxd5 {[%emt 0:00:04]} 9. Nxd5 {[%emt 0:00:34]} Bxd5 {[%emt 0:00:35]} 10. O-O-O {[%emt 0:00:49]} Be6 {[%emt 0:01:38]} 11. Qxd8+ {[%emt 0:00:13]} Rxd8 {[%emt 0:00:01]} 12. Rxd8+ {[%emt 0:00:10]} Kxd8 {[%emt 0:00:15]} 13. e4 {[%emt 0:01:09]} Bc5 {[%emt 0:03:15]} 14. Bxg7 {[%emt 0:02:38]} Rg8 {[%emt 0:00:01]} 15. Bf6+ {[%emt 0:00:03]} Kc8 {[%emt 0:00:00]} 16. f3 {[%emt 0:04:09]} a5 {[%emt 0:01:38]} 17. g3 {[%emt 0:00:10]} Kb8 {[%emt 0:05:18]} 18. Kb1 {[%emt 0:00:42]} a4 {[%emt 0:00:09]} 19. Bh3 {[%emt 0:00:53]} axb3 {[%emt 0:00:30]} 20. Bxe6 {[%emt 0:00:01]} fxe6 {[%emt 0:00:01]} 21. axb3 {[%emt 0:00:00]} e5 {[%emt 0:00:14]} 22. g4 {[%emt 0:00:29]} Rf8 {[%emt 0:00:23]} 23. g5 {[%emt 0:00:07]} Be7 {[%emt 0:00:09]} 24. Bxe7 {[%emt 0:00:20]} Nxe7 {[%emt 0:00:01]} 25. h4 {[%emt 0:00:11]} Rd8 {[%emt 0:00:18]} 26. Kc2 {[%emt 0:00:40]} Nc6 {[%emt 0:00:01]} 27. Rh2 {[%emt 0:00:21]} Nb4+ {[%emt 0:00:10]} 28. Kc3 {[%emt 0:00:15]} Rd1 {[%emt 0:00:25]} 29. Kxb4 {[%emt 0:00:11]} Rxg1 {[%emt 0:00:01]} 30. Rd2 {[%emt 0:00:24]} Kc8 {[%emt 0:00:06]} 31. Rd5 {[%emt 0:00:01]} Rh1 {[%emt 0:00:15]} 32. Rxe5 {[%emt 0:00:02]} Rxh4 {[%emt 0:00:01]} 33. Re7 {[%emt 0:00:16]} Kd8 {[%emt 0:00:05]} 34. Rf7 {[%emt 0:00:05]} Rh1 {[%emt 0:00:31]} 35. f4 {[%emt 0:00:17]} Re1 {[%emt 0:00:01]} 36. e5 {[%emt 0:00:08]} Re4+ {[%emt 0:00:01]} 37. Kc5 {[%emt 0:00:08]} Re3 {[%emt 0:00:01]} 38. Rxh7 {[%emt 0:00:07]} Rxb3 {[%emt 0:00:02]} 39. g6 {[%emt 0:00:09]} 1-0

[Event "RUS-ch Women Rapid 2019"]
[Site "Sochi"]
[Date "2019.10.15"]
[Round "2.8"]
[White "Kovanova, Baira"]
[Black "Filippova, Darya"]
[Result "1-0"]
[ECO "A05"]
[WhiteElo "2288"]
[BlackElo "2034"]
[Annotator "NA"]
[PlyCount "71"]
[EventDate "2019.10.15"]
[EventType "swiss"]
[EventCountry "RUS"]
[SourceTitle "playchess.com"]
[Source "ChessBase"]
[SourceQuality "1"]
[TimeControl "900+10"]

1. Nf3 Nf6 2. c4 e6 3. e3 b6 4. b3 Bb7 5. Bb2 d5 6. Be2 Be7 7. O-O O-O 8. Nc3 dxc4 9. bxc4 c5 10. Qc2 Nc6 11. a3 Rc8 12. Rac1 Rc7 13. Ba1 Rd7 14. d3 Qa8 15. Rfe1 Rfd8 16. Bf1 Ng4 17. h3 Nge5 18. Nxe5 Nxe5 19. Rcd1 Bf6 20. Nb5 Ng6 21. Bxf6 gxf6 22. f4 Kg7 23. Qf2 Rg8 24. f5 Ne7 25. fxe6 fxe6 26. e4 Kf7 27. Re3 a6 28. Nc3 Nc6 29. Qh4 Rg7 30. Rf3 Qd8 31. Rf2 Ne5 32. Be2 Ng6 33. Bh5 Rxd3 34. Rxd3 Qxd3 35. Qxf6+ Kg8 36. Nd5 1-0